Workbook

Sheet Migraine Models
C1: costs_s | D1: cases_s | E1: QALYloss_s | F1: costs_c | G1: cases_c | H1: QALYloss_c | J1: incr_cost | K1: incr_QALY | M1: icer_QALY | AB1: incr_cost | AC1: incr_QALY | AE1: icer_QALY
B2: deterministic | C2: 76.21189736 | D2: 0.558 | E2: 0.001597641337 | F2: 80.79989244 | G2: 0.379 | H2: 0.002188285052
B3: stochastic | N3: per QALY | AA3: stochastic | AF3: per QALY
B5: PSA run | C5: costs_s | D5: cases_s | E5: QALYloss_s | F5: costs_c | G5: cases_c | H5: QALYloss_c | P5: average ICER | AA5: PSA run | AH5: average ICER
B6: 1 | C6: 58.28801493 | D6: 0.5359495928 | E6: 0.001609415801 | F6: 53.91131885 | G6: 0.3728765116 | H6: 0.002174983411 | N6: per QALY | Q6: per QALY | AA6: 1 | AB6: 114.6361111 | AC6: 0.001447870091 | AF6: per QALY | AI6: per QALY
B7: =1+B6 -> 2 | C7: 66.39854167 | D7: 0.5476481282 | E7: 0.001664433744 | F7: 61.43925185 | G7: 0.4184302952 | H7: 0.00213983462 | N7: per QALY | AA7: =1+AA6 -> 2 | AB7: 110.6545838 | AC7: 0.002539255082 | AF7: per QALY
B8: =1+B7 -> 3 | C8: 70.95713227 | D8: 0.5398832527 | E8: 0.001574622415 | F8: 69.66453078 | G8: 0.3901405131 | H8: 0.00208707556 | N8: per QALY | AA8: =1+AA7 -> 3 | AB8: 95.06944762 | AC8: 0.003534687062 | AF8: per QALY
B9: 4 | C9: 78.04000236 | D9: 0.5444713151 | E9: 0.001464947684 | F9: 80.5982267 | G9: 0.3817869716 | H9: 0.001988070761 | N9: per QALY | AA9: 4 | AB9: 100.1641497 | AC9: 0.001529298799 | AF9: per QALY
B10: 5 | C10: 68.10791334 | D10: 0.5525304434 | E10: 0.001592915846 | F10: 66.19975396 | G10: 0.4007686907 | H10: 0.002133075433 | N10: per QALY | AA10: 5 | AB10: 82.90654702 | AC10: 0.002759009453 | AF10: per QALY
B11: 6 | C11: 53.40207934 | D11: 0.5791557746 | E11: 0.001417792485 | F11: 53.42119714 | G11: 0.3484665353 | H11: 0.002169669014 | N11: per QALY | AA11: 6 | AB11: 86.16468065 | AC11: 0.001819920378 | AF11: per QALY
B12: 7 | C12: 80.67951899 | D12: 0.557137172 | E12: 0.001750663082 | F12: 89.74120636 | G12: 0.3602404845 | H12: 0.002527259956 | N12: per QALY | AA12: 7 | AB12: 96.67866621 | AC12: 0.002144906414 | AF12: per QALY
B13: 8 | C13: 97.84609504 | D13: 0.5415979489 | E13: 0.001517064802 | F13: 106.5156595 | G13: 0.3851735349 | H13: 0.002034745672 | N13: per QALY | AA13: 8 | AB13: 100.8657968 | AC13: 0.001807838798 | AF13: per QALY
B14: 9 | C14: 91.20602218 | D14: 0.5584510172 | E14: 0.001610871273 | F14: 100.1119114 | G14: 0.3876673317 | H14: 0.002233929057 | N14: per QALY | AA14: 9 | AB14: 88.59305456 | AC14: 0.002727959894 | AF14: per QALY
B15: 10 | C15: 53.14870408 | D15: 0.568881199 | E15: 0.002025402195 | F15: 46.77119535 | G15: 0.4100492651 | H15: 0.002288704038 | N15: per QALY | AA15: 10 | AB15: 116.325555 | AC15: 0.003157613414 | AF15: per QALY
B16: 11 | C16: 106.7736367 | D16: 0.5579575355 | E16: 0.001469398905 | F16: 119.4561329 | G16: 0.3997212947 | H16: 0.00198202125 | N16: per QALY | AA16: 11 | AB16: 86.49723861 | AC16: 0.0005329677975 | AF16: per QALY
B17: 12 | C17: 64.17662106 | D17: 0.5594765852 | E17: 0.00143276621 | F17: 69.10700747 | G17: 0.3294575279 | H17: 0.002178802627 | N17: per QALY | AA17: 12 | AB17: 97.86307723 | AC17: 0.001081086178 | AF17: per QALY
B18: 13 | C18: 78.38603098 | D18: 0.5467896148 | E18: 0.001659364241 | F18: 85.33853405 | G18: 0.3534568935 | H18: 0.002367224022 | N18: per QALY | AA18: 13 | AB18: 132.0542709 | AC18: 0.002450295888 | AF18: per QALY
B19: 14 | C19: 54.45646219 | D19: 0.5529635378 | E19: 0.001615953454 | F19: 48.08959688 | G19: 0.4045821267 | H19: 0.002152324587 | N19: per QALY | AA19: 14 | AB19: 103.1061748 | AC19: 0.002148049305 | AF19: per QALY
B20: 15 | C20: 77.56432785 | D20: 0.538293452 | E20: 0.001848284919 | F20: 80.51239647 | G20: 0.3679979268 | H20: 0.002530003656 | N20: per QALY | AA20: 15 | AB20: 96.29170066 | AC20: 0.001127801374 | AF20: per QALY
B21: 16 | C21: 80.36873618 | D21: 0.5642221294 | E21: 0.001342866899 | F21: 85.95927239 | G21: 0.3929535423 | H21: 0.001870637885 | N21: per QALY | AA21: 16 | AB21: 97.0703214 | AC21: 0.001135100471 | AF21: per QALY
B22: 17 | C22: 78.74232948 | D22: 0.5625572248 | E22: 0.001446363646 | F22: 84.26072588 | G22: 0.3833276451 | H22: 0.001970255318 | N22: per QALY | AA22: 17 | AB22: 118.0363968 | AC22: 0.002540131647 | AF22: per QALY
B23: 18 | C23: 75.83249104 | D23: 0.5455588251 | E23: 0.001809734181 | F23: 77.60163659 | G23: 0.3804486279 | H23: 0.002240726976 | N23: per QALY | AA23: 18 | AB23: 99.49016062 | AC23: 0.004045462669 | AF23: per QALY
B24: 19 | C24: 29.79605649 | D24: 0.546971856 | E24: 0.001397324216 | F24: 15.73459173 | G24: 0.3515628355 | H24: 0.002000045613 | N24: per QALY | AA24: 19 | AB24: 103.9060654 | AC24: 0.003396594643 | AF24: per QALY
B25: 20 | C25: 85.93988604 | D25: 0.5709713094 | E25: 0.001522812854 | F25: 96.44667584 | G25: 0.3819237265 | H25: 0.002046295527 | N25: per QALY | AA25: 20 | AB25: 83.0990859 | AC25: 0.002221551618 | AF25: per QALY
B26: 21 | C26: 94.83904638 | D26: 0.5851467833 | E26: 0.001375522908 | F26: 113.4778198 | G26: 0.3785982606 | H26: 0.001835659042 | N26: per QALY | AA26: 21 | AB26: 105.3308108 | AC26: 0.002571043242 | AF26: per QALY
B27: 22 | C27: 62.40836917 | D27: 0.5479228628 | E27: 0.001702196402 | F27: 61.43677957 | G27: 0.3594901437 | H27: 0.002411696279 | N27: per QALY | AA27: 22 | AB27: 113.9439994 | AC27: 0.0005653849553 | AF27: per QALY
B28: 23 | C28: 151.4687202 | D28: 0.583093445 | E28: 0.001140953619 | F28: 201.8846537 | G28: 0.3642468429 | H28: 0.001739741226 | N28: per QALY | AA28: 23 | AB28: 109.26241 | AC28: 0.002800953233 | AF28: per QALY
B29: 24 | C29: 130.2996189 | D29: 0.5803012953 | E29: 0.001974453801 | F29: 170.4864468 | G29: 0.3598715754 | H29: 0.002503572016 | N29: per QALY | AA29: 24 | AB29: 79.25459668 | AC29: 0.0003645482029 | AF29: per QALY
B30: 25 | C30: 31.85740813 | D30: 0.5889108336 | E30: 0.001458172279 | F30: 18.69000282 | G30: 0.3987374944 | H30: 0.002131491908 | N30: per QALY | AA30: 25 | AB30: 80.82841039 | AC30: 0.001469566887 | AF30: per QALY
B31: 26 | C31: 81.45762156 | D31: 0.5890659403 | E31: 0.00201554465 | F31: 94.48496788 | G31: 0.3823163035 | H31: 0.002442932634 | N31: per QALY | AA31: 26 | AB31: 99.66791636 | AC31: 0.001971172166 | AF31: per QALY
B32: 27 | C32: 41.97053017 | D32: 0.5530322689 | E32: 0.00161709626 | F32: 34.05615747 | G32: 0.3543805794 | H32: 0.00233580007 | N32: per QALY | AA32: 27 | AB32: 82.33368697 | AC32: 0.00161392827 | AF32: per QALY
B33: 28 | C33: 66.70002408 | D33: 0.5559882901 | E33: 0.00142483735 | F33: 68.45090345 | G33: 0.3648267369 | H33: 0.002038276398 | N33: per QALY | AA33: 28 | AB33: 103.469429 | AC33: 0.003797062488 | AF33: per QALY
B34: 29 | C34: 62.40849495 | D34: 0.5582808431 | E34: 0.001501029231 | F34: 60.72050248 | G34: 0.3854909328 | H34: 0.002088195765 | N34: per QALY | AA34: 29 | AB34: 78.30404888 | AC34: 0.003394361633 | AF34: per QALY
B35: 30 | C35: 73.99599488 | D35: 0.5692970979 | E35: 0.001692988615 | F35: 81.08331213 | G35: 0.3660452421 | H35: 0.002432929558 | N35: per QALY | AA35: 30 | AB35: 124.3294432 | AC35: 0.0008831808089 | AF35: per QALY
B36: 31 | C36: 122.9489188 | D36: 0.571018575 | E36: 0.00147763462 | F36: 145.5584488 | G36: 0.4013405653 | H36: 0.002057849317 | N36: per QALY | AA36: 31 | AB36: 116.8875092 | AC36: 0.002597760329 | AF36: per QALY
B37: 32 | C37: 108.9133204 | D37: 0.5430194122 | E37: 0.001808188386 | F37: 130.6207093 | G37: 0.3392891593 | H37: 0.002518538219 | N37: per QALY | AA37: 32 | AB37: 106.71092 | AC37: 0.004320716147 | AF37: per QALY
B38: 33 | C38: 146.2012107 | D38: 0.5251890659 | E38: 0.001645177783 | F38: 165.7174687 | G38: 0.3834551218 | H38: 0.002027463719 | N38: per QALY | AA38: 33 | AB38: 93.85815338 | AC38: 0.001390816713 | AF38: per QALY
B39: 34 | C39: 45.96941981 | D39: 0.5631547484 | E39: 0.001526847159 | F39: 39.98641289 | G39: 0.3507001975 | H39: 0.002188018855 | N39: per QALY | AA39: 34 | AB39: 93.31023153 | AC39: 0.001941889211 | AF39: per QALY
B40: 35 | C40: 89.60182968 | D40: 0.5351028846 | E40: 0.00151044386 | F40: 94.78533208 | G40: 0.380147486 | H40: 0.002001244543 | N40: per QALY | AA40: 35 | AB40: 120.9165204 | AC40: 0.001126341397 | AF40: per QALY
B41: 36 | C41: 59.19675054 | D41: 0.5471389635 | E41: 0.001878924775 | F41: 56.05392619 | G41: 0.3694763748 | H41: 0.002616048549 | N41: per QALY | AA41: 36 | AB41: 131.4773045 | AC41: 0.002509918152 | AF41: per QALY
B42: 37 | C42: 73.67662674 | D42: 0.5775691328 | E42: 0.001620130846 | F42: 81.11667273 | G42: 0.3768555697 | H42: 0.002353642053 | N42: per QALY | AA42: 37 | AB42: 122.1229486 | AC42: 0.002769364179 | AF42: per QALY
B43: 38 | C43: 37.5728419 | D43: 0.5368487934 | E43: 0.001875596887 | F43: 25.6886345 | G43: 0.3749300731 | H43: 0.002471025084 | N43: per QALY | AA43: 38 | AB43: 124.0738248 | AC43: 0.002209550502 | AF43: per QALY
B44: 39 | C44: 69.36452374 | D44: 0.5684378218 | E44: 0.001589890412 | F44: 71.36744322 | G44: 0.3898691189 | H44: 0.002247743861 | N44: per QALY | AA44: 39 | AB44: 66.02972072 | AC44: 0.0001880675819 | AF44: per QALY
B45: 40 | C45: 110.8030614 | D45: 0.5510839535 | E45: 0.002135176525 | F45: 126.2106808 | G45: 0.3873564778 | H45: 0.002476801688 | N45: per QALY | AA45: 40 | AB45: 100.7985704 | AC45: 0.001897474408 | AF45: per QALY
B46: 41 | C46: 142.9644954 | D46: 0.5698973312 | E46: 0.001341561897 | F46: 178.0989395 | G46: 0.3822348768 | H46: 0.001926912365 | N46: per QALY | AA46: 41 | AB46: 118.3337991 | AC46: 0.001451188905 | AF46: per QALY
B47: 42 | C47: 67.70740384 | D47: 0.5421879775 | E47: 0.001487557576 | F47: 66.65978999 | G47: 0.3770233761 | H47: 0.002024222937 | N47: per QALY | AA47: 42 | AB47: 115.9531663 | AC47: 0.00230572937 | AF47: per QALY
B48: 43 | C48: 87.98143846 | D48: 0.5784827785 | E48: 0.001412447953 | F48: 102.6809208 | G48: 0.3716441369 | H48: 0.002105536635 | N48: per QALY | AA48: 43 | AB48: 127.7102371 | AC48: 0.001967845989 | AF48: per QALY
B49: 44 | C49: 81.65608131 | D49: 0.574848702 | E49: 0.001647188244 | F49: 91.96878501 | G49: 0.3742084927 | H49: 0.002413468789 | N49: per QALY | AA49: 44 | AB49: 102.2739881 | AC49: 0.001553086967 | AF49: per QALY
B50: 45 | C50: 57.45654001 | D50: 0.5300961488 | E50: 0.001300520298 | F50: 53.59135085 | G50: 0.354218532 | H50: 0.001787284576 | N50: per QALY | AA50: 45 | AB50: 109.0181569 | AC50: 0.0006360210952 | AF50: per QALY
B51: 46 | C51: 119.4887483 | D51: 0.5757344061 | E51: 0.001581390802 | F51: 145.1799662 | G51: 0.3877151563 | H51: 0.002282116542 | N51: per QALY | AA51: 46 | AB51: 126.342256 | AC51: 0.001694654212 | AF51: per QALY
B52: 47 | C52: 181.4493087 | D52: 0.55012346 | E52: 0.002243832009 | F52: 227.3204166 | G52: 0.3711216537 | H52: 0.002607927155 | N52: per QALY | AA52: 47 | AB52: 91.77914242 | AC52: 0.003141187502 | AF52: per QALY
B53: 48 | C53: 61.1831046 | D53: 0.5493939673 | E53: 0.001500267311 | F53: 57.91617364 | G53: 0.385711312 | H53: 0.002045238819 | N53: per QALY | AA53: 48 | AB53: 112.1640772 | AC53: 0.002145951009 | AF53: per QALY
B54: 49 | C54: 66.75881208 | D54: 0.5720629458 | E54: 0.00152464674 | F54: 73.16158952 | G54: 0.3462559775 | H54: 0.00232764632 | N54: per QALY | AA54: 49 | AB54: 89.98655598 | AC54: 0.001413856086 | AF54: per QALY
B55: 50 | C55: 68.49780597 | D55: 0.5663879185 | E55: 0.001522520052 | F55: 70.56938022 | G55: 0.3854986956 | H55: 0.002157667182 | N55: per QALY | AA55: 50 | AB55: 101.0334962 | AC55: 0.002732211302 | AF55: per QALY
B56: 51 | C56: 72.08254141 | D56: 0.5580761402 | E56: 0.001211347639 | F56: 75.92929141 | G56: 0.3753833577 | H56: 0.001712122752 | N56: per QALY | AA56: 51 | AB56: 130.724879 | AC56: 0.001261583109 | AF56: per QALY
B57: 52 | C57: 122.8698091 | D57: 0.528019887 | E57: 0.00157148138 | F57: 143.0016394 | G57: 0.3542906263 | H57: 0.002149920874 | N57: per QALY | AA57: 52 | AB57: 97.53001671 | AC57: 0.002259101389 | AF57: per QALY
B58: 53 | C58: 96.87151562 | D58: 0.5585533514 | E58: 0.001632646373 | F58: 110.0370572 | G58: 0.3771291415 | H58: 0.002070026453 | N58: per QALY | AA58: 53 | AB58: 69.50281968 | AC58: 0.002933980739 | AF58: per QALY
B59: 54 | C59: 176.5912792 | D59: 0.5290533719 | E59: 0.002132223696 | F59: 206.3437591 | G59: 0.3861798431 | H59: 0.002601751592 | N59: per QALY | AA59: 54 | AB59: 97.91406751 | AC59: 0.002460130877 | AF59: per QALY
B60: 55 | C60: 35.1668098 | D60: 0.5720739917 | E60: 0.001724370441 | F60: 24.5673715 | G60: 0.367265288 | H60: 0.002545218679 | N60: per QALY | AA60: 55 | AB60: 84.91313233 | AC60: 0.002327626204 | AF60: per QALY
B61: 56 | C61: 78.12875463 | D61: 0.5269668702 | E61: 0.001528352422 | F61: 79.29034804 | G61: 0.3681492997 | H61: 0.002041458138 | N61: per QALY | AA61: 56 | AB61: 124.4381173 | AC61: 0.003049952261 | AF61: per QALY
B62: 57 | C62: 74.39588638 | D62: 0.5389006547 | E62: 0.001894144979 | F62: 75.55682706 | G62: 0.3754973272 | H62: 0.002438088245 | N62: per QALY | AA62: 57 | AB62: 106.9719317 | AC62: 0.002994077735 | AF62: per QALY
B63: 58 | C63: 64.1284356 | D63: 0.5713713753 | E63: 0.00162435132 | F63: 64.30117781 | G63: 0.3903284413 | H63: 0.002169492196 | N63: per QALY | AA63: 58 | AB63: 92.75363539 | AC63: 0.001713297738 | AF63: per QALY
B64: 59 | C64: 96.61778471 | D64: 0.5460360303 | E64: 0.00156046403 | F64: 106.807825 | G64: 0.377752091 | H64: 0.002138926285 | N64: per QALY | AA64: 59 | AB64: 66.86644666 | AC64: 0.003197614029 | AF64: per QALY
B65: 60 | C65: 64.05355953 | D65: 0.5584470657 | E65: 0.001824489568 | F65: 64.75431876 | G65: 0.3731965229 | H65: 0.002339765156 | N65: per QALY | AA65: 60 | AB65: 108.2981094 | AC65: 0.002648423224 | AF65: per QALY
B66: 61 | C66: 158.3374554 | D66: 0.548566571 | E66: 0.001703763828 | F66: 184.1708648 | G66: 0.4047179189 | H66: 0.00224666587 | N66: per QALY | AA66: 61 | AB66: 68.14284801 | AC66: 0.0008385462667 | AF66: per QALY
B67: 62 | C67: 82.36174668 | D67: 0.5592940274 | E67: 0.001368576493 | F67: 88.7659719 | G67: 0.3864909029 | H67: 0.001905202514 | N67: per QALY | AA67: 62 | AB67: 96.81875217 | AC67: 0.001864402147 | AF67: per QALY
B68: 63 | C68: 113.715768 | D68: 0.5557849815 | E68: 0.002239047517 | F68: 130.2121879 | G68: 0.3905066675 | H68: 0.002520933771 | N68: per QALY | AA68: 63 | AB68: 143.2273038 | AC68: 0.002025038696 | AF68: per QALY
B69: 64 | C69: 71.6013354 | D69: 0.579232587 | E69: 0.001686007577 | F69: 74.04085378 | G69: 0.4077074611 | H69: 0.002041819444 | N69: per QALY | AA69: 64 | AB69: 92.05839043 | AC69: 9.898641758e-05 | AF69: per QALY
B70: 65 | C70: 78.11674353 | D70: 0.5622122806 | E70: 0.002008080409 | F70: 81.99542898 | G70: 0.392442407 | H70: 0.002424418161 | N70: per QALY | AA70: 65 | AB70: 120.3020644 | AC70: 0.002109024932 | AF70: per QALY
B71: 66 | C71: 42.22270927 | D71: 0.5541985092 | E71: 0.001506495612 | F71: 33.10587509 | G71: 0.3770695341 | H71: 0.00210506624 | N71: per QALY | AA71: 66 | AB71: 114.6355897 | AC71: 0.002828325798 | AF71: per QALY
B72: =1+B71 -> 67 | C72: 37.16546547 | D72: 0.556082224 | E72: 0.001415555472 | F72: 24.92775333 | G72: 0.4010301917 | H72: 0.001909980775 | N72: per QALY | AA72: =1+AA71 -> 67 | AB72: 93.92737809 | AC72: 0.002630801451 | AF72: per QALY
B73: 68 | C73: 63.08906592 | D73: 0.529607852 | E73: 0.001768994799 | F73: 58.18468065 | G73: 0.3880253701 | H73: 0.002298735975 | N73: per QALY | AA73: 68 | AB73: 103.2418301 | AC73: 0.003577304423 | AF73: per QALY
B74: 69 | C74: 53.63138356 | D74: 0.5846892016 | E74: 0.001311103025 | F74: 49.03799923 | G74: 0.4089386249 | H74: 0.00186593356 | N74: per QALY | AA74: 69 | AB74: 139.3932051 | AC74: 0.002197699564 | AF74: per QALY
B75: 70 | C75: 110.9228748 | D75: 0.5452415715 | E75: 0.001375377955 | F75: 124.2950211 | G75: 0.3889144647 | H75: 0.001848175914 | N75: per QALY | AA75: 70 | AB75: 94.5255478 | AC75: 0.002023912017 | AF75: per QALY
B76: 71 | C76: 100.7169025 | D76: 0.5499010524 | E76: 0.001580822697 | F76: 116.3167751 | G76: 0.3608749603 | H76: 0.002243273813 | N76: per QALY | AA76: 71 | AB76: 112.8369921 | AC76: 0.003580134824 | AF76: per QALY
B77: 72 | C77: 63.89183606 | D77: 0.588585989 | E77: 0.001350847745 | F77: 67.55189004 | G77: 0.3819993887 | H77: 0.002001648787 | N77: per QALY | AA77: 72 | AB77: 109.9845723 | AC77: 0.002677986648 | AF77: per QALY
B78: 73 | C78: 145.2366881 | D78: 0.5810698362 | E78: 0.001782468887 | F78: 191.4952011 | G78: 0.3647981267 | H78: 0.002429013551 | N78: per QALY | AA78: 73 | AB78: 114.8962642 | AC78: 0.0007807618226 | AF78: per QALY
B79: 74 | C79: 57.69292258 | D79: 0.5299659832 | E79: 0.00179242346 | F79: 51.48385399 | G79: 0.380258425 | H79: 0.002165723001 | N79: per QALY | AA79: 74 | AB79: 110.5105296 | AC79: 0.002614632324 | AF79: per QALY
B80: 75 | C80: 37.07757642 | D80: 0.5726016695 | E80: 0.001480697769 | F80: 25.74325739 | G80: 0.3891823502 | H80: 0.002116143452 | N80: per QALY | AA80: 75 | AB80: 121.7328253 | AC80: 0.001799811404 | AF80: per QALY
B81: 76 | C81: 84.59755078 | D81: 0.558346728 | E81: 0.001547822244 | F81: 90.87946176 | G81: 0.3910647871 | H81: 0.00213408012 | N81: per QALY | AA81: 76 | AB81: 110.2486944 | AC81: 0.002138820879 | AF81: per QALY
B82: 77 | C82: 74.95693674 | D82: 0.5434635368 | E82: 0.001577130736 | F82: 75.76710196 | G82: 0.3854711746 | H82: 0.002122924184 | N82: per QALY | AA82: 77 | AB82: 68.18093202 | AC82: 0.001100863486 | AF82: per QALY
B83: 78 | C83: 98.72334791 | D83: 0.5635979172 | E83: 0.001433384976 | F83: 114.4948736 | G83: 0.3747906767 | H83: 0.002053532021 | N83: per QALY | AA83: 78 | AB83: 85.71869414 | AC83: 0.001979138283 | AF83: per QALY
B84: 79 | C84: 83.46995234 | D84: 0.572865735 | E84: 0.00157848352 | F84: 93.63298595 | G84: 0.3837989667 | H84: 0.00218809967 | N84: per QALY | AA84: 79 | AB84: 137.3452499 | AC84: 0.003010045579 | AF84: per QALY
B85: 80 | C85: 30.28597005 | D85: 0.5528617914 | E85: 0.001594686006 | F85: 16.66559716 | G85: 0.3583926465 | H85: 0.002288202237 | N85: per QALY | AA85: 80 | AB85: 86.08647386 | AC85: 0.002154496247 | AF85: per QALY
B86: 81 | C86: 58.73113409 | D86: 0.5500902159 | E86: 0.001498964401 | F86: 55.75938334 | G86: 0.3778232737 | H86: 0.002072906163 | N86: per QALY | AA86: 81 | AB86: 105.941525 | AC86: 0.003376620743 | AF86: per QALY
B87: 82 | C87: 96.56005678 | D87: 0.5636237917 | E87: 0.00204670717 | F87: 111.045509 | G87: 0.3765138986 | H87: 0.002302907219 | N87: per QALY | AA87: 82 | AB87: 107.0300094 | AC87: 0.0009641919609 | AF87: per QALY
B88: 83 | C88: 61.71663594 | D88: 0.5588275255 | E88: 0.001560361516 | F88: 61.13152838 | G88: 0.3791999174 | H88: 0.002129531433 | N88: per QALY | AA88: 83 | AB88: 131.8597532 | AC88: 0.002947203226 | AF88: per QALY
B89: 84 | C89: 58.02609025 | D89: 0.5459858072 | E89: 0.002121196364 | F89: 54.24582961 | G89: 0.3688803804 | H89: 0.002566052336 | N89: per QALY | AA89: 84 | AB89: 93.02631748 | AC89: 0.003532115735 | AF89: per QALY
B90: 85 | C90: 53.91887507 | D90: 0.5475563982 | E90: 0.001622237342 | F90: 47.76522691 | G90: 0.387068576 | H90: 0.002158683608 | N90: per QALY | AA90: 85 | AB90: 123.3303085 | AC90: 0.001156426797 | AF90: per QALY
B91: 86 | C91: 101.9457283 | D91: 0.5683692049 | E91: 0.001801478702 | F91: 116.3425679 | G91: 0.3939408078 | H91: 0.002244610019 | N91: per QALY | AA91: 86 | AB91: 95.70659048 | AC91: 0.001259082345 | AF91: per QALY
B92: 87 | C92: 84.35512203 | D92: 0.5763486526 | E92: 0.002059653618 | F92: 93.3931365 | G92: 0.3937037306 | H92: 0.002240099598 | N92: per QALY | AA92: 87 | AB92: 84.2731932 | AC92: 0.001974032538 | AF92: per QALY
B93: 88 | C93: 63.97264503 | D93: 0.549524039 | E93: 0.001591583061 | F93: 63.4346455 | G93: 0.3717126747 | H93: 0.002219791013 | N93: per QALY | AA93: 88 | AB93: 81.9274629 | AC93: 0.002169116005 | AF93: per QALY
B94: 89 | C94: 40.0972891 | D94: 0.5801080955 | E94: 0.001442515841 | F94: 32.33987099 | G94: 0.3650524551 | H94: 0.002181327818 | N94: per QALY | AA94: 89 | AB94: 101.1457024 | AC94: 0.00175595834 | AF94: per QALY
B95: 90 | C95: 85.9735171 | D95: 0.5705085322 | E95: 0.001428740979 | F95: 97.80745744 | G95: 0.3731755766 | H95: 0.002085186336 | N95: per QALY | AA95: 90 | AB95: 75.46803031 | AC95: 0.001362508231 | AF95: per QALY
B96: 91 | C96: 68.26814369 | D96: 0.5936811483 | E96: 0.001247578813 | F96: 70.88888188 | G96: 0.4147989519 | H96: 0.001749388186 | N96: per QALY | AA96: 91 | AB96: 91.08959536 | AC96: 0.002995234599 | AF96: per QALY
B97: 92 | C97: 46.92388784 | D97: 0.5476606532 | E97: 0.001511844944 | F97: 39.63694838 | G97: 0.3692104632 | H97: 0.002108275511 | N97: per QALY | AA97: 92 | AB97: 99.30741835 | AC97: 0.001913060109 | AF97: per QALY
B98: 93 | C98: 81.63572283 | D98: 0.5406382313 | E98: 0.001661872262 | F98: 84.44835309 | G98: 0.3886855076 | H98: 0.002211604595 | N98: per QALY | AA98: 93 | AB98: 111.6085089 | AC98: 0.002093554918 | AF98: per QALY
B99: 94 | C99: 55.54873696 | D99: 0.5812372739 | E99: 0.001692300069 | F99: 54.59476545 | G99: 0.3751053149 | H99: 0.002525318642 | N99: per QALY | AA99: 94 | AB99: 108.9182402 | AC99: 0.0018833019 | AF99: per QALY
B100: 95 | C100: 42.9242184 | D100: 0.5664721772 | E100: 0.001326670338 | F100: 34.63162324 | G100: 0.3722644981 | H100: 0.001920978916 | N100: per QALY | AA100: 95 | AB100: 132.9503705 | AC100: 0.003682447426 | AF100: per QALY
B101: 96 | C101: 88.25849175 | D101: 0.5657228941 | E101: 0.001502235449 | F101: 97.29837655 | G101: 0.3925930752 | H101: 0.002099037274 | N101: per QALY | AA101: 96 | AB101: 134.8288738 | AC101: 0.0007503407889 | AF101: per QALY
B102: 97 | C102: 41.24101663 | D102: 0.5424462781 | E102: 0.00167782402 | F102: 32.59532555 | G102: 0.3461417751 | H102: 0.002397661701 | N102: per QALY | AA102: 97 | AB102: 87.51638163 | AC102: 0.001634719267 | AF102: per QALY
B103: 98 | C103: 89.57093273 | D103: 0.5606846136 | E103: 0.001225583224 | F103: 104.2353304 | G103: 0.3525769381 | H103: 0.001805818709 | N103: per QALY | AA103: 98 | AB103: 45.65877349 | AC103: 0.002778285085 | AF103: per QALY
B104: 99 | C104: 60.50167784 | D104: 0.551695334 | E104: 0.00173644338 | F104: 57.9952964 | G104: 0.3711144835 | H104: 0.002435878274 | N104: per QALY | AA104: 99 | AB104: 93.70935291 | AC104: 0.001285065509 | AF104: per QALY
B105: 100 | C105: 55.58227777 | D105: 0.5616335167 | E105: 0.001472673917 | F105: 48.50699083 | G105: 0.4214346855 | H105: 0.001943645557 | N105: per QALY | AA105: 100 | AB105: 116.7256278 | AC105: 0.003518557005 | AF105: per QALY
B106: 101 | C106: 64.90528785 | D106: 0.5436849263 | E106: 0.001638300186 | F106: 62.50615708 | G106: 0.3856486389 | H106: 0.002205695159 | N106: per QALY | AA106: 101 | AB106: 59.1150902 | AC106: 0.004069740619 | AF106: per QALY
B107: 102 | C107: 46.6922366 | D107: 0.5656413203 | E107: 0.001705498283 | F107: 40.26715578 | G107: 0.364310097 | H107: 0.002496020199 | N107: per QALY | AA107: 102 | AB107: 89.42566128 | AC107: 0.002290182998 | AF107: per QALY
B108: 103 | C108: 47.24591229 | D108: 0.5436436332 | E108: 0.001937654726 | F108: 37.12123767 | G108: 0.3997210694 | H108: 0.002110129949 | N108: per QALY | AA108: 103 | AB108: 93.34814729 | AC108: 0.0002062175079 | AF108: per QALY
B109: 104 | C109: 67.16451318 | D109: 0.5450697093 | E109: 0.001540009946 | F109: 64.93541869 | G109: 0.383776041 | H109: 0.002085633439 | N109: per QALY | AA109: 104 | AB109: 99.13891994 | AC109: 0.001349476387 | AF109: per QALY
B110: 105 | C110: 71.37424636 | D110: 0.5535474833 | E110: 0.001475041234 | F110: 76.4722703 | G110: 0.3535561446 | H110: 0.002135795642 | N110: per QALY | AA110: 105 | AB110: 109.7104448 | AC110: 0.001379846398 | AF110: per QALY
B111: 106 | C111: 44.9904813 | D111: 0.5709834909 | E111: 0.00162083108 | F111: 38.04809866 | G111: 0.3822166574 | H111: 0.002333995127 | N111: per QALY | AA111: 106 | AB111: 88.92330658 | AC111: 0.001019311741 | AF111: per QALY
B112: 107 | C112: 106.0763568 | D112: 0.5806708394 | E112: 0.001433169591 | F112: 129.3209919 | G112: 0.3766845102 | H112: 0.002130347353 | N112: per QALY | AA112: 107 | AB112: 89.38070668 | AC112: 0.001757890576 | AF112: per QALY
B113: 108 | C113: 56.58683885 | D113: 0.5483307253 | E113: 0.001735528665 | F113: 52.19110106 | G113: 0.3836903418 | H113: 0.002168938301 | N113: per QALY | AA113: 108 | AB113: 83.87522037 | AC113: 0.003028025037 | AF113: per QALY
B114: 109 | C114: 110.0552127 | D114: 0.5313580482 | E114: 0.001673917042 | F114: 122.440966 | G114: 0.3747440588 | H114: 0.002233317839 | N114: per QALY | AA114: 109 | AB114: 81.26510923 | AC114: 0.001364985789 | AF114: per QALY
B115: 110 | C115: 86.55204481 | D115: 0.5520592484 | E115: 0.002237622115 | F115: 91.99025723 | G115: 0.3927258901 | H115: 0.002512377747 | N115: per QALY | AA115: 110 | AB115: 120.0276426 | AC115: 0.002513597156 | AF115: per QALY
B116: 111 | C116: 86.20962814 | D116: 0.5480756313 | E116: 0.001568123426 | F116: 90.068393 | G116: 0.4023836887 | H116: 0.002072530401 | N116: per QALY | AA116: 111 | AB116: 116.8035658 | AC116: 0.001861439811 | AF116: per QALY
B117: 112 | C117: 143.218937 | D117: 0.5660302649 | E117: 0.001425231864 | F117: 184.1201765 | G117: 0.3579480068 | H117: 0.00210861008 | N117: per QALY | AA117: 112 | AB117: 81.19626641 | AC117: 0.001981422695 | AF117: per QALY
B118: 113 | C118: 48.76798311 | D118: 0.548218693 | E118: 0.001686728952 | F118: 41.11870359 | G118: 0.3808823331 | H118: 0.002311480527 | N118: per QALY | AA118: 113 | AB118: 84.01872391 | AC118: 0.002272441014 | AF118: per QALY
B119: 114 | C119: 60.88573294 | D119: 0.5329527407 | E119: 0.002262958647 | F119: 57.22864574 | G119: 0.3685513735 | H119: 0.002621232447 | N119: per QALY | AA119: 114 | AB119: 87.55806554 | AC119: 0.001426398255 | AF119: per QALY
B120: 115 | C120: 73.58346494 | D120: 0.5524179416 | E120: 0.001408332178 | F120: 73.83788038 | G120: 0.396428809 | H120: 0.001899157292 | N120: per QALY | AA120: 115 | AB120: 87.65458948 | AC120: 0.002307239177 | AF120: per QALY
B121: 116 | C121: 59.50322704 | D121: 0.5775949674 | E121: 0.001601726873 | F121: 61.04360579 | G121: 0.3669631541 | H121: 0.002400331269 | N121: per QALY | AA121: 116 | AB121: 84.19414692 | AC121: 0.002655270365 | AF121: per QALY
B122: 117 | C122: 132.9006278 | D122: 0.5740992423 | E122: 0.001482555454 | F122: 162.7500084 | G122: 0.3939298259 | H122: 0.002109723042 | N122: per QALY | AA122: 117 | AB122: 135.1545499 | AC122: 0.001031053355 | AF122: per QALY
B123: 118 | C123: 56.49207322 | D123: 0.5624207492 | E123: 0.001541854567 | F123: 52.64448413 | G123: 0.3907931185 | H123: 0.002027995327 | N123: per QALY | AA123: 118 | AB123: 93.87979527 | AC123: 0.001164018266 | AF123: per QALY
B124: 119 | C124: 61.91042108 | D124: 0.5653697311 | E124: 0.001689880711 | F124: 63.18673168 | G124: 0.3636452699 | H124: 0.002474203157 | N124: per QALY | AA124: 119 | AB124: 94.16416588 | AC124: 0.00262481876 | AF124: per QALY
B125: 120 | C125: 74.40660293 | D125: 0.5556803083 | E125: 0.001405127529 | F125: 76.94024537 | G125: 0.3830408216 | H125: 0.001951053014 | N125: per QALY | AA125: 120 | AB125: 49.32986078 | AC125: 0.003236120368 | AF125: per QALY
B126: 121 | C126: 91.47382915 | D126: 0.5318008719 | E126: 0.001867258567 | F126: 98.93456642 | G126: 0.3645206396 | H126: 0.002240610844 | N126: per QALY | AA126: 121 | AB126: 114.4404086 | AC126: 0.001472682357 | AF126: per QALY
B127: 122 | C127: 58.38768398 | D127: 0.5451659121 | E127: 0.001619559633 | F127: 52.99784472 | G127: 0.3929867232 | H127: 0.002160835964 | N127: per QALY | AA127: 122 | AB127: 89.71719629 | AC127: 0.003454896028 | AF127: per QALY
B128: 123 | C128: 65.30912754 | D128: 0.5512308047 | E128: 0.001556424665 | F128: 65.31897391 | G128: 0.3687278049 | H128: 0.002189271071 | N128: per QALY | AA128: 123 | AB128: 103.3391899 | AC128: 0.002434186585 | AF128: per QALY
B129: 124 | C129: 57.26135936 | D129: 0.504440658 | E129: 0.002200588427 | F129: 48.77595959 | G129: 0.3792171871 | H129: 0.00232853424 | N129: per QALY | AA129: 124 | AB129: 98.47806322 | AC129: 0.002775759805 | AF129: per QALY
B130: 125 | C130: 57.93181323 | D130: 0.5645422818 | E130: 0.001506505514 | F130: 56.17956853 | G130: 0.3687789199 | H130: 0.002183766639 | N130: per QALY | AA130: 125 | AB130: 89.29433117 | AC130: 0.002496293856 | AF130: per QALY
B131: 126 | C131: 66.46634186 | D131: 0.5691168735 | E131: 0.001527152352 | F131: 67.07160223 | G131: 0.3916731766 | H131: 0.002156041185 | N131: per QALY | AA131: 126 | AB131: 109.6018864 | AC131: 0.002367857171 | AF131: per QALY
B132: 127 | C132: 96.36923619 | D132: 0.5692337653 | E132: 0.001391175448 | F132: 111.9031393 | G132: 0.3798689775 | H132: 0.002002736016 | N132: per QALY | AA132: 127 | AB132: 109.9318105 | AC132: 0.002388066113 | AF132: per QALY
B133: 128 | C133: 77.6294467 | D133: 0.5470366991 | E133: 0.00149101177 | F133: 79.03216251 | G133: 0.3937699089 | H133: 0.001995517517 | N133: per QALY | AA133: 128 | AB133: 112.588293 | AC133: 9.860163019e-05 | AF133: per QALY
B134: 129 | C134: 82.17122657 | D134: 0.5494503371 | E134: 0.001775756413 | F134: 83.26722155 | G134: 0.4095252937 | H134: 0.00232724423 | N134: per QALY | AA134: 129 | AB134: 94.27145543 | AC134: 0.002087279146 | AF134: per QALY
B135: 130 | C135: 86.99731895 | D135: 0.5579161554 | E135: 0.001411261582 | F135: 98.64567637 | G135: 0.3616987644 | H135: 0.002037645172 | N135: per QALY | AA135: 130 | AB135: 119.9221853 | AC135: 0.001544962855 | AF135: per QALY
B136: =1+B135 -> 131 | C136: 55.62404415 | D136: 0.5789875175 | E136: 0.001712338893 | F136: 54.85191576 | G136: 0.3739179343 | H136: 0.002358057493 | N136: per QALY | AA136: =1+AA135 -> 131 | AB136: 81.69788688 | AC136: 0.00281591309 | AF136: per QALY
B137: 132 | C137: 40.01606162 | D137: 0.5397268406 | E137: 0.001669289468 | F137: 28.58160277 | G137: 0.3967831564 | H137: 0.002123390062 | N137: per QALY | AA137: 132 | AB137: 56.31985761 | AC137: 0.00310138464 | AF137: per QALY
B138: 133 | C138: 106.0698259 | D138: 0.538924722 | E138: 0.001526298316 | F138: 119.3309976 | G138: 0.3709354065 | H138: 0.002082393394 | N138: per QALY | AA138: 133 | AB138: 126.3551134 | AC138: 0.003052523367 | AF138: per QALY
B139: 134 | C139: 102.9573133 | D139: 0.591694086 | E139: 0.001238441836 | F139: 127.2315155 | G139: 0.380707834 | H139: 0.001878388974 | N139: per QALY | AA139: 134 | AB139: 109.4264296 | AC139: 0.00268550257 | AF139: per QALY
B140: 135 | C140: 39.20403173 | D140: 0.5454884615 | E140: 0.001830750373 | F140: 27.59847992 | G140: 0.3868385586 | H140: 0.002469667775 | N140: per QALY | AA140: 135 | AB140: 125.0607253 | AC140: 0.002156129656 | AF140: per QALY
B141: 136 | C141: 73.98908349 | D141: 0.5765913773 | E141: 0.001418073181 | F141: 80.54997584 | G141: 0.380923322 | H141: 0.002073400712 | N141: per QALY | AA141: 136 | AB141: 113.2165451 | AC141: 0.00226868776 | AF141: per QALY
B142: 137 | C142: 37.86688856 | D142: 0.5327605782 | E142: 0.001624294857 | F142: 25.89220527 | G142: 0.3812752418 | H142: 0.002150913148 | N142: per QALY | AA142: 137 | AB142: 85.6602601 | AC142: 0.0005623320239 | AF142: per QALY
B143: 138 | C143: 113.118081 | D143: 0.5520105618 | E143: 0.001600972843 | F143: 136.374674 | G143: 0.3530722351 | H143: 0.002311915627 | N143: per QALY | AA143: 138 | AB143: 124.9318333 | AC143: 0.001350375933 | AF143: per QALY
B144: 139 | C144: 66.35301589 | D144: 0.5405219806 | E144: 0.001514785296 | F144: 66.1366659 | G144: 0.37217338 | H144: 0.002069788751 | N144: per QALY | AA144: 139 | AB144: 72.45095731 | AC144: 0.00158676006 | AF144: per QALY
B145: 140 | C145: 112.0978288 | D145: 0.5892244773 | E145: 0.001428703964 | F145: 145.1499045 | G145: 0.3606460625 | H145: 0.002223712113 | N145: per QALY | AA145: 140 | AB145: 86.40170376 | AC145: 0.0032086844 | AF145: per QALY
B146: 141 | C146: 58.19701389 | D146: 0.5362419118 | E146: 0.001439285823 | F146: 52.60043065 | G146: 0.3913499125 | H146: 0.001888962079 | N146: per QALY | AA146: 141 | AB146: 105.9216121 | AC146: 0.001558326445 | AF146: per QALY
B147: 142 | C147: 109.1077279 | D147: 0.5131875329 | E147: 0.002195349603 | F147: 116.7607835 | G147: 0.3717476195 | H147: 0.002440070346 | N147: per QALY | AA147: 142 | AB147: 116.7026959 | AC147: 0.001941582683 | AF147: per QALY
B148: 143 | C148: 88.37476444 | D148: 0.56175508 | E148: 0.001418311163 | F148: 100.7196333 | G148: 0.36561274 | H148: 0.002011386629 | N148: per QALY | AA148: 143 | AB148: 121.5101045 | AC148: 0.001007497985 | AF148: per QALY
B149: 144 | C149: 87.93975277 | D149: 0.5551081808 | E149: 0.00164962077 | F149: 94.8283226 | G149: 0.3901736828 | H149: 0.002261183765 | N149: per QALY | AA149: 144 | AB149: 139.3205302 | AC149: 0.001538193321 | AF149: per QALY
B150: 145 | C150: 62.68835529 | D150: 0.5747305421 | E150: 0.001591538827 | F150: 66.07937034 | G150: 0.3671868712 | H150: 0.002368255336 | N150: per QALY | AA150: 145 | AB150: 126.2750653 | AC150: 0.003551821836 | AF150: per QALY
B151: 146 | C151: 138.4228015 | D151: 0.5473684117 | E151: 0.001408163922 | F151: 155.2478663 | G151: 0.4123436156 | H151: 0.001828233964 | N151: per QALY | AA151: 146 | AB151: 78.25740562 | AC151: 0.0008322210723 | AF151: per QALY
B152: 147 | C152: 85.97264945 | D152: 0.5272002728 | E152: 0.001553753431 | F152: 88.047079 | G152: 0.3835782307 | H152: 0.002025736022 | N152: per QALY | AA152: 147 | AB152: 136.1970029 | AC152: 0.002772562097 | AF152: per QALY
B153: 148 | C153: 42.5219255 | D153: 0.5710813008 | E153: 0.001585871163 | F153: 34.29238618 | G153: 0.3874185868 | H153: 0.002264939735 | N153: per QALY | AA153: 148 | AB153: 73.37316534 | AC153: 0.00274346763 | AF153: per QALY
B154: 149 | C154: 120.1304726 | D154: 0.5462573662 | E154: 0.001664958598 | F154: 139.6595048 | G154: 0.3785998214 | H154: 0.002280159485 | N154: per QALY | AA154: 149 | AB154: 90.62910949 | AC154: 0.0005878546436 | AF154: per QALY
B155: 150 | C155: 56.20685789 | D155: 0.5671806225 | E155: 0.001632691405 | F155: 53.76130283 | G155: 0.3811186275 | H155: 0.002334558825 | N155: per QALY | AA155: 150 | AB155: 96.59131238 | AC155: 0.001963707115 | AF155: per QALY
B156: 151 | C156: 124.7812983 | D156: 0.5381611448 | E156: 0.001851185969 | F156: 144.5893069 | G156: 0.3697113117 | H156: 0.002386225255 | N156: per QALY | AA156: 151 | AB156: 118.5091961 | AC156: 0.002909717941 | AF156: per QALY
B157: 152 | C157: 66.37460766 | D157: 0.5864062892 | E157: 0.001446285184 | F157: 69.99134906 | G157: 0.3897473066 | H157: 0.00213397691 | N157: per QALY | AA157: 152 | AB157: 114.0166248 | AC157: 0.001234606834 | AF157: per QALY
B158: 153 | C158: 74.08017292 | D158: 0.5577374052 | E158: 0.001657098188 | F158: 79.17880387 | G158: 0.3702313849 | H158: 0.00235965791 | N158: per QALY | AA158: 153 | AB158: 127.0742936 | AC158: 0.002081760205 | AF158: per QALY
B159: 154 | C159: 75.45246473 | D159: 0.5234248862 | E159: 0.00172000329 | F159: 73.66437627 | G159: 0.3856016963 | H159: 0.002133822204 | N159: per QALY | AA159: 154 | AB159: 90.21182188 | AC159: 0.001991652932 | AF159: per QALY
B160: 155 | C160: 49.92345721 | D160: 0.524138047 | E160: 0.001713069438 | F160: 40.49008296 | G160: 0.3887794837 | H160: 0.002200350711 | N160: per QALY | AA160: 155 | AB160: 81.16921966 | AC160: 0.003277844201 | AF160: per QALY
B161: 156 | C161: 62.54784933 | D161: 0.5518266845 | E161: 0.001471427447 | F161: 59.32057104 | G161: 0.3934669858 | H161: 0.001991073011 | N161: per QALY | AA161: 156 | AB161: 74.71193787 | AC161: 0.002007115211 | AF161: per QALY
B162: 157 | C162: 30.61526331 | D162: 0.5435996692 | E162: 0.001555949623 | F162: 16.52265275 | G162: 0.3736858359 | H162: 0.002135215929 | N162: per QALY | AA162: 157 | AB162: 99.59004097 | AC162: 0.002448172714 | AF162: per QALY
B163: 158 | C163: 77.82695324 | D163: 0.5665445117 | E163: 0.001585831543 | F163: 82.99097514 | G163: 0.3858835966 | H163: 0.002246793939 | N163: per QALY | AA163: 158 | AB163: 59.06562741 | AC163: 0.000293928521 | AF163: per QALY
B164: 159 | C164: 102.5016931 | D164: 0.5406760187 | E164: 0.001521568001 | F164: 116.0673762 | G164: 0.3655992124 | H164: 0.002098479728 | N164: per QALY | AA164: 159 | AB164: 66.35097158 | AC164: 0.002563773113 | AF164: per QALY
B165: 160 | C165: 30.8103706 | D165: 0.5253849837 | E165: 0.001722748529 | F165: 15.81004608 | G165: 0.3900739414 | H165: 0.002213897968 | N165: per QALY | AA165: 160 | AB165: 79.8904969 | AC165: 0.001765842184 | AF165: per QALY
B166: 161 | C166: 56.33713441 | D166: 0.5584066419 | E166: 0.001588835077 | F166: 53.47107812 | G166: 0.3745723238 | H166: 0.002250263533 | N166: per QALY | AA166: 161 | AB166: 100.7573537 | AC166: 0.004014498736 | AF166: per QALY
B167: 162 | C167: 34.55374948 | D167: 0.5451580161 | E167: 0.001543940892 | F167: 22.49056732 | G167: 0.3578108357 | H167: 0.002179881817 | N167: per QALY | AA167: 162 | AB167: 104.7275656 | AC167: 0.001660622283 | AF167: per QALY
B168: 163 | C168: 57.53737488 | D168: 0.5832092334 | E168: 0.001702415975 | F168: 55.39303404 | G168: 0.4044730181 | H168: 0.002432478665 | N168: per QALY | AA168: 163 | AB168: 76.45258374 | AC168: 0.00156711018 | AF168: per QALY
B169: 164 | C169: 123.1176499 | D169: 0.5570452208 | E169: 0.001581632649 | F169: 147.1278574 | G169: 0.3780679892 | H169: 0.002220595433 | N169: per QALY | AA169: 164 | AB169: 114.458836 | AC169: 0.00318631568 | AF169: per QALY
B170: 165 | C170: 65.66939421 | D170: 0.5483927113 | E170: 0.001569838077 | F170: 63.9271259 | G170: 0.3880405144 | H170: 0.002127240457 | N170: per QALY | AA170: 165 | AB170: 84.32405182 | AC170: 0.001580854146 | AF170: per QALY
B171: 166 | C171: 95.87008883 | D171: 0.5551271677 | E171: 0.001783279871 | F171: 104.025862 | G171: 0.39791434 | H171: 0.002413453411 | N171: per QALY | AA171: 166 | AB171: 101.7308516 | AC171: 0.002940981998 | AF171: per QALY
B172: 167 | C172: 83.48382098 | D172: 0.5800284002 | E172: 0.001406242347 | F172: 96.89212709 | G172: 0.3659411703 | H172: 0.002118776949 | N172: per QALY | AA172: 167 | AB172: 107.433856 | AC172: 0.002063941821 | AF172: per QALY
B173: 168 | C173: 63.4552361 | D173: 0.5504045708 | E173: 0.001883449396 | F173: 63.04322623 | G173: 0.3663708044 | H173: 0.002411783607 | N173: per QALY | AA173: 168 | AB173: 98.81639121 | AC173: 0.001925230065 | AF173: per QALY
B174: 169 | C174: 57.94594268 | D174: 0.5344908783 | E174: 0.001590919838 | F174: 51.16175619 | G174: 0.401416433 | H174: 0.002045663666 | N174: per QALY | AA174: 169 | AB174: 103.9673778 | AC174: 0.003422961398 | AF174: per QALY
B175: 170 | C175: 68.46369107 | D175: 0.5838410029 | E175: 0.001464505147 | F175: 76.23488843 | G175: 0.3583718934 | H175: 0.002257953501 | N175: per QALY | AA175: 170 | AB175: 131.3382182 | AC175: 0.0009115268716 | AF175: per QALY
B176: 171 | C176: 141.9886787 | D176: 0.5337371741 | E176: 0.001675638036 | F176: 164.1733177 | G176: 0.3821197967 | H176: 0.002196849019 | N176: per QALY | AA176: 171 | AB176: 79.93482952 | AC176: 0.001590898073 | AF176: per QALY
B177: 172 | C177: 55.54561982 | D177: 0.5911082555 | E177: 0.001542984105 | F177: 54.2677038 | G177: 0.392878281 | H177: 0.002291019994 | N177: per QALY | AA177: 172 | AB177: 88.42663996 | AC177: 0.002408778832 | AF177: per QALY
B178: 173 | C178: 98.51731207 | D178: 0.5681031861 | E178: 0.001553511502 | F178: 114.9634735 | G178: 0.3799907987 | H178: 0.002230142182 | N178: per QALY | AA178: 173 | AB178: 59.30688373 | AC178: 0.002823678463 | AF178: per QALY
B179: 174 | C179: 55.27398334 | D179: 0.56331657 | E179: 0.001424914562 | F179: 52.26861177 | G179: 0.3761070434 | H179: 0.002035555771 | N179: per QALY | AA179: 174 | AB179: 95.25280004 | AC179: 0.0008743414781 | AF179: per QALY
B180: 175 | C180: 70.58965755 | D180: 0.5570909225 | E180: 0.001666247443 | F180: 72.55460471 | G180: 0.3791811227 | H180: 0.002335552853 | N180: per QALY | AA180: 175 | AB180: 97.35717123 | AC180: 0.001778798186 | AF180: per QALY
B181: 176 | C181: 69.23901688 | D181: 0.5609245531 | E181: 0.001709635149 | F181: 69.90799516 | G181: 0.3938879559 | H181: 0.002360028241 | N181: per QALY | AA181: 176 | AB181: 55.03074116 | AC181: 0.001349042904 | AF181: per QALY
B182: 177 | C182: 30.78115706 | D182: 0.5647594429 | E182: 0.001353886079 | F182: 17.37576266 | G182: 0.3707324347 | H182: 0.001957438438 | N182: per QALY | AA182: 177 | AB182: 103.5495023 | AC182: 0.0009351168384 | AF182: per QALY
B183: 178 | C183: 56.98025086 | D183: 0.5441262178 | E183: 0.001787190171 | F183: 54.35091771 | G183: 0.3476642792 | H183: 0.002557340859 | N183: per QALY | AA183: 178 | AB183: 125.6705265 | AC183: 0.001939500619 | AF183: per QALY
B184: 179 | C184: 59.66317766 | D184: 0.5526221138 | E184: 0.001753407796 | F184: 57.53627557 | G184: 0.3675730425 | H184: 0.00247832044 | N184: per QALY | AA184: 179 | AB184: 115.468877 | AC184: 0.002879308787 | AF184: per QALY
B185: 180 | C185: 123.2862087 | D185: 0.5302886567 | E185: 0.001603050821 | F185: 136.383581 | G185: 0.3902492703 | H185: 0.002080968493 | N185: per QALY | AA185: 180 | AB185: 91.9277419 | AC185: 0.003321812597 | AF185: per QALY
B186: 181 | C186: 76.67240964 | D186: 0.5662511242 | E186: 0.001648860908 | F186: 83.68937326 | G186: 0.3766979893 | H186: 0.002360980967 | N186: per QALY | AA186: 181 | AB186: 111.5635991 | AC186: 0.001470381829 | AF186: per QALY
B187: 182 | C187: 66.3202204 | D187: 0.5558915039 | E187: 0.001682024634 | F187: 68.67232473 | G187: 0.3607196607 | H187: 0.00242118928 | N187: per QALY | AA187: 182 | AB187: 94.71860839 | AC187: 0.0006821643197 | AF187: per QALY
B188: 183 | C188: 83.35974806 | D188: 0.5426059847 | E188: 0.00147496334 | F188: 81.89518754 | G188: 0.422478076 | H188: 0.001782841688 | N188: per QALY | AA188: 183 | AB188: 95.13903597 | AC188: 0.0006833392016 | AF188: per QALY
B189: 184 | C189: 43.37892556 | D189: 0.5446521251 | E189: 0.001464681851 | F189: 33.74039884 | G189: 0.3863194479 | H189: 0.001973975861 | N189: per QALY | AA189: 184 | AB189: 94.91007249 | AC189: 0.002322242492 | AF189: per QALY
B190: 185 | C190: 72.21428532 | D190: 0.537383367 | E190: 0.00165124974 | F190: 73.09689982 | G190: 0.3726613574 | H190: 0.002230127081 | N190: per QALY | AA190: 185 | AB190: 123.6239556 | AC190: 0.001364143064 | AF190: per QALY
B191: 186 | C191: 65.14789383 | D191: 0.5343537429 | E191: 0.002240984631 | F191: 62.7093801 | G191: 0.3748296854 | H191: 0.002515973174 | N191: per QALY | AA191: 186 | AB191: 109.4572073 | AC191: 0.002548830946 | AF191: per QALY
B192: 187 | C192: 36.44329133 | D192: 0.531248131 | E192: 0.001505635579 | F192: 24.75174401 | G192: 0.3513099577 | H192: 0.002083598747 | N192: per QALY | AA192: 187 | AB192: 71.66172788 | AC192: 0.002427324588 | AF192: per QALY
B193: 188 | C193: 37.15554607 | D193: 0.5831428329 | E193: 0.001548639404 | F193: 26.71948477 | G193: 0.3981213145 | H193: 0.002235997139 | N193: per QALY | AA193: 188 | AB193: 106.445937 | AC193: 0.001561882635 | AF193: per QALY
B194: 189 | C194: 57.19361725 | D194: 0.5515032061 | E194: 0.001718662666 | F194: 53.29675778 | G194: 0.3842461611 | H194: 0.002319801989 | N194: per QALY | AA194: 189 | AB194: 64.54399091 | AC194: 0.002107628136 | AF194: per QALY
B195: 190 | C195: 84.61054381 | D195: 0.5383303883 | E195: 0.001666839795 | F195: 89.13152674 | G195: 0.3800016148 | H195: 0.002238478888 | N195: per QALY | AA195: 190 | AB195: 105.6767138 | AC195: 0.002758901974 | AF195: per QALY
B196: 191 | C196: 48.74026491 | D196: 0.5470409583 | E196: 0.001882274788 | F196: 40.42725222 | G196: 0.3916340261 | H196: 0.002501780417 | N196: per QALY | AA196: 191 | AB196: 65.47666005 | AC196: 0.002329154058 | AF196: per QALY
B197: 192 | C197: 77.90347832 | D197: 0.5540604428 | E197: 0.001613090544 | F197: 81.19802811 | G197: 0.3861160581 | H197: 0.00222058946 | N197: per QALY | AA197: 192 | AB197: 107.9036324 | AC197: 0.0009412897645 | AF197: per QALY
B198: 193 | C198: 58.62020919 | D198: 0.5537426896 | E198: 0.001824173793 | F198: 55.97002602 | G198: 0.3785730297 | H198: 0.002508346773 | N198: per QALY | AA198: 193 | AB198: 135.7741056 | AC198: 0.001633960964 | AF198: per QALY
B199: 194 | C199: 37.72672654 | D199: 0.5456461573 | E199: 0.001628394442 | F199: 26.25607172 | G199: 0.3735073289 | H199: 0.002245336316 | N199: per QALY | AA199: 194 | AB199: 121.1831581 | AC199: 0.002924402241 | AF199: per QALY
B200: =1+B199 -> 195 | C200: 82.65655682 | D200: 0.5489009404 | E200: 0.001492248383 | F200: 88.96301863 | G200: 0.3757776213 | H200: 0.002064942275 | N200: per QALY | AA200: =1+AA199 -> 195 | AB200: 93.90191727 | AC200: 0.001714772332 | AF200: per QALY
B201: 196 | C201: 130.5283249 | D201: 0.5437063413 | E201: 0.001856323443 | F201: 159.5908261 | G201: 0.3466657298 | H201: 0.002656472768 | N201: per QALY | AA201: 196 | AB201: 108.441513 | AC201: 0.001974518007 | AF201: per QALY
... 2049 more rows

Sheet Sheet3
D2: 0.998 | F2: =IF(M2<0.0005,1,0) -> 0 | G2: 1 | H2: =D$2*G2 -> 0.998 | J2: =ROUND(H2:H1501,0) -> 1 | K2: =G2-J2 -> 0 | L2: =J2/G2 -> 1 | M2: =ABS($D$2-L2) -> 0.002
F3: =IF(M3<0.0005,1,0) -> 0 | G3: =1+G2 -> 2 | H3: =D$2*G3 -> 1.996 | J3: 2 | K3: =G3-J3 -> 0 | L3: 1 | M3: =ABS($D$2-L3) -> 0.002
F4: 0 | G4: =1+G3 -> 3 | H4: 2.994 | J4: 3 | K4: 0 | L4: 1 | M4: 0.002
D5: =MATCH(1,F2:F1501,) -> 400 | F5: 0 | G5: 4 | H5: 3.992 | J5: 4 | K5: 0 | L5: 1 | M5: 0.002
C6: =D5*D2 -> 399.2 | D6: =D5-C6 -> 0.8 | F6: 0 | G6: 5 | H6: 4.99 | J6: 5 | K6: 0 | L6: 1 | M6: 0.002
F7: 0 | G7: 6 | H7: 5.988 | J7: 6 | K7: 0 | L7: 1 | M7: 0.002
D8: =D5*E8 -> 400 | E8: 1 | F8: 0 | G8: 7 | H8: 6.986 | J8: 7 | K8: 0 | L8: 1 | M8: 0.002
C9: =ROUND(D8*D2,0) -> 399 | D9: =D8-C9 -> 1 | F9: 0 | G9: 8 | H9: 7.984 | J9: 8 | K9: 0 | L9: 1 | M9: 0.002
D10: =C9/D8 -> 0.9975 | F10: 0 | G10: 9 | H10: 8.982 | J10: 9 | K10: 0 | L10: 1 | M10: 0.002
F11: 0 | G11: 10 | H11: 9.98 | J11: 10 | K11: 0 | L11: 1 | M11: 0.002
F12: 0 | G12: 11 | H12: 10.978 | J12: 11 | K12: 0 | L12: 1 | M12: 0.002
F13: 0 | G13: 12 | H13: 11.976 | J13: 12 | K13: 0 | L13: 1 | M13: 0.002
F14: 0 | G14: 13 | H14: 12.974 | J14: 13 | K14: 0 | L14: 1 | M14: 0.002
F15: 0 | G15: 14 | H15: 13.972 | J15: 14 | K15: 0 | L15: 1 | M15: 0.002
F16: 0 | G16: 15 | H16: 14.97 | J16: 15 | K16: 0 | L16: 1 | M16: 0.002
F17: 0 | G17: 16 | H17: 15.968 | J17: 16 | K17: 0 | L17: 1 | M17: 0.002
F18: 0 | G18: 17 | H18: 16.966 | J18: 17 | K18: 0 | L18: 1 | M18: 0.002
F19: 0 | G19: 18 | H19: 17.964 | J19: 18 | K19: 0 | L19: 1 | M19: 0.002
F20: 0 | G20: 19 | H20: 18.962 | J20: 19 | K20: 0 | L20: 1 | M20: 0.002
F21: 0 | G21: 20 | H21: 19.96 | J21: 20 | K21: 0 | L21: 1 | M21: 0.002
F22: 0 | G22: 21 | H22: 20.958 | J22: 21 | K22: 0 | L22: 1 | M22: 0.002
F23: 0 | G23: 22 | H23: 21.956 | J23: 22 | K23: 0 | L23: 1 | M23: 0.002
F24: 0 | G24: 23 | H24: 22.954 | J24: 23 | K24: 0 | L24: 1 | M24: 0.002
F25: 0 | G25: 24 | H25: 23.952 | J25: 24 | K25: 0 | L25: 1 | M25: 0.002
F26: 0 | G26: 25 | H26: 24.95 | J26: 25 | K26: 0 | L26: 1 | M26: 0.002
F27: 0 | G27: 26 | H27: 25.948 | J27: 26 | K27: 0 | L27: 1 | M27: 0.002
F28: 0 | G28: 27 | H28: 26.946 | J28: 27 | K28: 0 | L28: 1 | M28: 0.002
F29: 0 | G29: 28 | H29: 27.944 | J29: 28 | K29: 0 | L29: 1 | M29: 0.002
F30: 0 | G30: 29 | H30: 28.942 | J30: 29 | K30: 0 | L30: 1 | M30: 0.002
F31: 0 | G31: 30 | H31: 29.94 | J31: 30 | K31: 0 | L31: 1 | M31: 0.002
F32: 0 | G32: 31 | H32: 30.938 | J32: 31 | K32: 0 | L32: 1 | M32: 0.002
F33: 0 | G33: 32 | H33: 31.936 | J33: 32 | K33: 0 | L33: 1 | M33: 0.002
F34: 0 | G34: 33 | H34: 32.934 | J34: 33 | K34: 0 | L34: 1 | M34: 0.002
F35: 0 | G35: 34 | H35: 33.932 | J35: 34 | K35: 0 | L35: 1 | M35: 0.002
F36: 0 | G36: 35 | H36: 34.93 | J36: 35 | K36: 0 | L36: 1 | M36: 0.002
F37: 0 | G37: 36 | H37: 35.928 | J37: 36 | K37: 0 | L37: 1 | M37: 0.002
F38: 0 | G38: 37 | H38: 36.926 | J38: 37 | K38: 0 | L38: 1 | M38: 0.002
F39: 0 | G39: 38 | H39: 37.924 | J39: 38 | K39: 0 | L39: 1 | M39: 0.002
F40: 0 | G40: 39 | H40: 38.922 | J40: 39 | K40: 0 | L40: 1 | M40: 0.002
F41: 0 | G41: 40 | H41: 39.92 | J41: 40 | K41: 0 | L41: 1 | M41: 0.002
F42: 0 | G42: 41 | H42: 40.918 | J42: 41 | K42: 0 | L42: 1 | M42: 0.002
F43: 0 | G43: 42 | H43: 41.916 | J43: 42 | K43: 0 | L43: 1 | M43: 0.002
F44: 0 | G44: 43 | H44: 42.914 | J44: 43 | K44: 0 | L44: 1 | M44: 0.002
F45: 0 | G45: 44 | H45: 43.912 | J45: 44 | K45: 0 | L45: 1 | M45: 0.002
F46: 0 | G46: 45 | H46: 44.91 | J46: 45 | K46: 0 | L46: 1 | M46: 0.002
F47: 0 | G47: 46 | H47: 45.908 | J47: 46 | K47: 0 | L47: 1 | M47: 0.002
F48: 0 | G48: 47 | H48: 46.906 | J48: 47 | K48: 0 | L48: 1 | M48: 0.002
F49: 0 | G49: 48 | H49: 47.904 | J49: 48 | K49: 0 | L49: 1 | M49: 0.002
F50: 0 | G50: 49 | H50: 48.902 | J50: 49 | K50: 0 | L50: 1 | M50: 0.002
F51: 0 | G51: 50 | H51: 49.9 | J51: 50 | K51: 0 | L51: 1 | M51: 0.002
F52: 0 | G52: 51 | H52: 50.898 | J52: 51 | K52: 0 | L52: 1 | M52: 0.002
F53: 0 | G53: 52 | H53: 51.896 | J53: 52 | K53: 0 | L53: 1 | M53: 0.002
F54: 0 | G54: 53 | H54: 52.894 | J54: 53 | K54: 0 | L54: 1 | M54: 0.002
F55: 0 | G55: 54 | H55: 53.892 | J55: 54 | K55: 0 | L55: 1 | M55: 0.002
F56: 0 | G56: 55 | H56: 54.89 | J56: 55 | K56: 0 | L56: 1 | M56: 0.002
F57: 0 | G57: 56 | H57: 55.888 | J57: 56 | K57: 0 | L57: 1 | M57: 0.002
F58: 0 | G58: 57 | H58: 56.886 | J58: 57 | K58: 0 | L58: 1 | M58: 0.002
F59: 0 | G59: 58 | H59: 57.884 | J59: 58 | K59: 0 | L59: 1 | M59: 0.002
F60: 0 | G60: 59 | H60: 58.882 | J60: 59 | K60: 0 | L60: 1 | M60: 0.002
F61: 0 | G61: 60 | H61: 59.88 | J61: 60 | K61: 0 | L61: 1 | M61: 0.002
F62: 0 | G62: 61 | H62: 60.878 | J62: 61 | K62: 0 | L62: 1 | M62: 0.002
F63: 0 | G63: 62 | H63: 61.876 | J63: 62 | K63: 0 | L63: 1 | M63: 0.002
F64: 0 | G64: 63 | H64: 62.874 | J64: 63 | K64: 0 | L64: 1 | M64: 0.002
F65: 0 | G65: 64 | H65: 63.872 | J65: 64 | K65: 0 | L65: 1 | M65: 0.002
F66: 0 | G66: 65 | H66: 64.87 | J66: =ROUND(H66:H1565,0) -> 65 | K66: 0 | L66: =J66/G66 -> 1 | M66: 0.002
F67: =IF(M67<0.0005,1,0) -> 0 | G67: 66 | H67: =D$2*G67 -> 65.868 | J67: 66 | K67: =G67-J67 -> 0 | L67: 1 | M67: =ABS($D$2-L67) -> 0.002
F68: 0 | G68: =1+G67 -> 67 | H68: 66.866 | J68: 67 | K68: 0 | L68: 1 | M68: 0.002
F69: 0 | G69: 68 | H69: 67.864 | J69: 68 | K69: 0 | L69: 1 | M69: 0.002
F70: 0 | G70: 69 | H70: 68.862 | J70: 69 | K70: 0 | L70: 1 | M70: 0.002
F71: 0 | G71: 70 | H71: 69.86 | J71: 70 | K71: 0 | L71: 1 | M71: 0.002
F72: 0 | G72: 71 | H72: 70.858 | J72: 71 | K72: 0 | L72: 1 | M72: 0.002
F73: 0 | G73: 72 | H73: 71.856 | J73: 72 | K73: 0 | L73: 1 | M73: 0.002
F74: 0 | G74: 73 | H74: 72.854 | J74: 73 | K74: 0 | L74: 1 | M74: 0.002
F75: 0 | G75: 74 | H75: 73.852 | J75: 74 | K75: 0 | L75: 1 | M75: 0.002
F76: 0 | G76: 75 | H76: 74.85 | J76: 75 | K76: 0 | L76: 1 | M76: 0.002
F77: 0 | G77: 76 | H77: 75.848 | J77: 76 | K77: 0 | L77: 1 | M77: 0.002
F78: 0 | G78: 77 | H78: 76.846 | J78: 77 | K78: 0 | L78: 1 | M78: 0.002
F79: 0 | G79: 78 | H79: 77.844 | J79: 78 | K79: 0 | L79: 1 | M79: 0.002
F80: 0 | G80: 79 | H80: 78.842 | J80: 79 | K80: 0 | L80: 1 | M80: 0.002
F81: 0 | G81: 80 | H81: 79.84 | J81: 80 | K81: 0 | L81: 1 | M81: 0.002
F82: 0 | G82: 81 | H82: 80.838 | J82: 81 | K82: 0 | L82: 1 | M82: 0.002
F83: 0 | G83: 82 | H83: 81.836 | J83: 82 | K83: 0 | L83: 1 | M83: 0.002
F84: 0 | G84: 83 | H84: 82.834 | J84: 83 | K84: 0 | L84: 1 | M84: 0.002
F85: 0 | G85: 84 | H85: 83.832 | J85: 84 | K85: 0 | L85: 1 | M85: 0.002
F86: 0 | G86: 85 | H86: 84.83 | J86: 85 | K86: 0 | L86: 1 | M86: 0.002
F87: 0 | G87: 86 | H87: 85.828 | J87: 86 | K87: 0 | L87: 1 | M87: 0.002
F88: 0 | G88: 87 | H88: 86.826 | J88: 87 | K88: 0 | L88: 1 | M88: 0.002
F89: 0 | G89: 88 | H89: 87.824 | J89: 88 | K89: 0 | L89: 1 | M89: 0.002
F90: 0 | G90: 89 | H90: 88.822 | J90: 89 | K90: 0 | L90: 1 | M90: 0.002
F91: 0 | G91: 90 | H91: 89.82 | J91: 90 | K91: 0 | L91: 1 | M91: 0.002
F92: 0 | G92: 91 | H92: 90.818 | J92: 91 | K92: 0 | L92: 1 | M92: 0.002
F93: 0 | G93: 92 | H93: 91.816 | J93: 92 | K93: 0 | L93: 1 | M93: 0.002
F94: 0 | G94: 93 | H94: 92.814 | J94: 93 | K94: 0 | L94: 1 | M94: 0.002
F95: 0 | G95: 94 | H95: 93.812 | J95: 94 | K95: 0 | L95: 1 | M95: 0.002
F96: 0 | G96: 95 | H96: 94.81 | J96: 95 | K96: 0 | L96: 1 | M96: 0.002
F97: 0 | G97: 96 | H97: 95.808 | J97: 96 | K97: 0 | L97: 1 | M97: 0.002
F98: 0 | G98: 97 | H98: 96.806 | J98: 97 | K98: 0 | L98: 1 | M98: 0.002
F99: 0 | G99: 98 | H99: 97.804 | J99: 98 | K99: 0 | L99: 1 | M99: 0.002
F100: 0 | G100: 99 | H100: 98.802 | J100: 99 | K100: 0 | L100: 1 | M100: 0.002
F101: 0 | G101: 100 | H101: 99.8 | J101: 100 | K101: 0 | L101: 1 | M101: 0.002
F102: 0 | G102: 101 | H102: 100.798 | J102: 101 | K102: 0 | L102: 1 | M102: 0.002
F103: 0 | G103: 102 | H103: 101.796 | J103: 102 | K103: 0 | L103: 1 | M103: 0.002
F104: 0 | G104: 103 | H104: 102.794 | J104: 103 | K104: 0 | L104: 1 | M104: 0.002
F105: 0 | G105: 104 | H105: 103.792 | J105: 104 | K105: 0 | L105: 1 | M105: 0.002
F106: 0 | G106: 105 | H106: 104.79 | J106: 105 | K106: 0 | L106: 1 | M106: 0.002
F107: 0 | G107: 106 | H107: 105.788 | J107: 106 | K107: 0 | L107: 1 | M107: 0.002
F108: 0 | G108: 107 | H108: 106.786 | J108: 107 | K108: 0 | L108: 1 | M108: 0.002
F109: 0 | G109: 108 | H109: 107.784 | J109: 108 | K109: 0 | L109: 1 | M109: 0.002
F110: 0 | G110: 109 | H110: 108.782 | J110: 109 | K110: 0 | L110: 1 | M110: 0.002
F111: 0 | G111: 110 | H111: 109.78 | J111: 110 | K111: 0 | L111: 1 | M111: 0.002
F112: 0 | G112: 111 | H112: 110.778 | J112: 111 | K112: 0 | L112: 1 | M112: 0.002
F113: 0 | G113: 112 | H113: 111.776 | J113: 112 | K113: 0 | L113: 1 | M113: 0.002
F114: 0 | G114: 113 | H114: 112.774 | J114: 113 | K114: 0 | L114: 1 | M114: 0.002
F115: 0 | G115: 114 | H115: 113.772 | J115: 114 | K115: 0 | L115: 1 | M115: 0.002
F116: 0 | G116: 115 | H116: 114.77 | J116: 115 | K116: 0 | L116: 1 | M116: 0.002
F117: 0 | G117: 116 | H117: 115.768 | J117: 116 | K117: 0 | L117: 1 | M117: 0.002
F118: 0 | G118: 117 | H118: 116.766 | J118: 117 | K118: 0 | L118: 1 | M118: 0.002
F119: 0 | G119: 118 | H119: 117.764 | J119: 118 | K119: 0 | L119: 1 | M119: 0.002
F120: 0 | G120: 119 | H120: 118.762 | J120: 119 | K120: 0 | L120: 1 | M120: 0.002
F121: 0 | G121: 120 | H121: 119.76 | J121: 120 | K121: 0 | L121: 1 | M121: 0.002
F122: 0 | G122: 121 | H122: 120.758 | J122: 121 | K122: 0 | L122: 1 | M122: 0.002
F123: 0 | G123: 122 | H123: 121.756 | J123: 122 | K123: 0 | L123: 1 | M123: 0.002
F124: 0 | G124: 123 | H124: 122.754 | J124: 123 | K124: 0 | L124: 1 | M124: 0.002
F125: 0 | G125: 124 | H125: 123.752 | J125: 124 | K125: 0 | L125: 1 | M125: 0.002
F126: 0 | G126: 125 | H126: 124.75 | J126: 125 | K126: 0 | L126: 1 | M126: 0.002
F127: 0 | G127: 126 | H127: 125.748 | J127: 126 | K127: 0 | L127: 1 | M127: 0.002
F128: 0 | G128: 127 | H128: 126.746 | J128: 127 | K128: 0 | L128: 1 | M128: 0.002
F129: 0 | G129: 128 | H129: 127.744 | J129: 128 | K129: 0 | L129: 1 | M129: 0.002
F130: 0 | G130: 129 | H130: 128.742 | J130: =ROUND(H130:H1629,0) -> 129 | K130: 0 | L130: =J130/G130 -> 1 | M130: 0.002
F131: =IF(M131<0.0005,1,0) -> 0 | G131: 130 | H131: =D$2*G131 -> 129.74 | J131: 130 | K131: =G131-J131 -> 0 | L131: 1 | M131: =ABS($D$2-L131) -> 0.002
F132: 0 | G132: =1+G131 -> 131 | H132: 130.738 | J132: 131 | K132: 0 | L132: 1 | M132: 0.002
F133: 0 | G133: 132 | H133: 131.736 | J133: 132 | K133: 0 | L133: 1 | M133: 0.002
F134: 0 | G134: 133 | H134: 132.734 | J134: 133 | K134: 0 | L134: 1 | M134: 0.002
F135: 0 | G135: 134 | H135: 133.732 | J135: 134 | K135: 0 | L135: 1 | M135: 0.002
F136: 0 | G136: 135 | H136: 134.73 | J136: 135 | K136: 0 | L136: 1 | M136: 0.002
F137: 0 | G137: 136 | H137: 135.728 | J137: 136 | K137: 0 | L137: 1 | M137: 0.002
F138: 0 | G138: 137 | H138: 136.726 | J138: 137 | K138: 0 | L138: 1 | M138: 0.002
F139: 0 | G139: 138 | H139: 137.724 | J139: 138 | K139: 0 | L139: 1 | M139: 0.002
F140: 0 | G140: 139 | H140: 138.722 | J140: 139 | K140: 0 | L140: 1 | M140: 0.002
F141: 0 | G141: 140 | H141: 139.72 | J141: 140 | K141: 0 | L141: 1 | M141: 0.002
F142: 0 | G142: 141 | H142: 140.718 | J142: 141 | K142: 0 | L142: 1 | M142: 0.002
F143: 0 | G143: 142 | H143: 141.716 | J143: 142 | K143: 0 | L143: 1 | M143: 0.002
F144: 0 | G144: 143 | H144: 142.714 | J144: 143 | K144: 0 | L144: 1 | M144: 0.002
F145: 0 | G145: 144 | H145: 143.712 | J145: 144 | K145: 0 | L145: 1 | M145: 0.002
F146: 0 | G146: 145 | H146: 144.71 | J146: 145 | K146: 0 | L146: 1 | M146: 0.002
F147: 0 | G147: 146 | H147: 145.708 | J147: 146 | K147: 0 | L147: 1 | M147: 0.002
F148: 0 | G148: 147 | H148: 146.706 | J148: 147 | K148: 0 | L148: 1 | M148: 0.002
F149: 0 | G149: 148 | H149: 147.704 | J149: 148 | K149: 0 | L149: 1 | M149: 0.002
F150: 0 | G150: 149 | H150: 148.702 | J150: 149 | K150: 0 | L150: 1 | M150: 0.002
F151: 0 | G151: 150 | H151: 149.7 | J151: 150 | K151: 0 | L151: 1 | M151: 0.002
F152: 0 | G152: 151 | H152: 150.698 | J152: 151 | K152: 0 | L152: 1 | M152: 0.002
F153: 0 | G153: 152 | H153: 151.696 | J153: 152 | K153: 0 | L153: 1 | M153: 0.002
F154: 0 | G154: 153 | H154: 152.694 | J154: 153 | K154: 0 | L154: 1 | M154: 0.002
F155: 0 | G155: 154 | H155: 153.692 | J155: 154 | K155: 0 | L155: 1 | M155: 0.002
F156: 0 | G156: 155 | H156: 154.69 | J156: 155 | K156: 0 | L156: 1 | M156: 0.002
F157: 0 | G157: 156 | H157: 155.688 | J157: 156 | K157: 0 | L157: 1 | M157: 0.002
F158: 0 | G158: 157 | H158: 156.686 | J158: 157 | K158: 0 | L158: 1 | M158: 0.002
F159: 0 | G159: 158 | H159: 157.684 | J159: 158 | K159: 0 | L159: 1 | M159: 0.002
F160: 0 | G160: 159 | H160: 158.682 | J160: 159 | K160: 0 | L160: 1 | M160: 0.002
F161: 0 | G161: 160 | H161: 159.68 | J161: 160 | K161: 0 | L161: 1 | M161: 0.002
F162: 0 | G162: 161 | H162: 160.678 | J162: 161 | K162: 0 | L162: 1 | M162: 0.002
F163: 0 | G163: 162 | H163: 161.676 | J163: 162 | K163: 0 | L163: 1 | M163: 0.002
F164: 0 | G164: 163 | H164: 162.674 | J164: 163 | K164: 0 | L164: 1 | M164: 0.002
F165: 0 | G165: 164 | H165: 163.672 | J165: 164 | K165: 0 | L165: 1 | M165: 0.002
F166: 0 | G166: 165 | H166: 164.67 | J166: 165 | K166: 0 | L166: 1 | M166: 0.002
F167: 0 | G167: 166 | H167: 165.668 | J167: 166 | K167: 0 | L167: 1 | M167: 0.002
F168: 0 | G168: 167 | H168: 166.666 | J168: 167 | K168: 0 | L168: 1 | M168: 0.002
F169: 0 | G169: 168 | H169: 167.664 | J169: 168 | K169: 0 | L169: 1 | M169: 0.002
F170: 0 | G170: 169 | H170: 168.662 | J170: 169 | K170: 0 | L170: 1 | M170: 0.002
F171: 0 | G171: 170 | H171: 169.66 | J171: 170 | K171: 0 | L171: 1 | M171: 0.002
F172: 0 | G172: 171 | H172: 170.658 | J172: 171 | K172: 0 | L172: 1 | M172: 0.002
F173: 0 | G173: 172 | H173: 171.656 | J173: 172 | K173: 0 | L173: 1 | M173: 0.002
F174: 0 | G174: 173 | H174: 172.654 | J174: 173 | K174: 0 | L174: 1 | M174: 0.002
F175: 0 | G175: 174 | H175: 173.652 | J175: 174 | K175: 0 | L175: 1 | M175: 0.002
F176: 0 | G176: 175 | H176: 174.65 | J176: 175 | K176: 0 | L176: 1 | M176: 0.002
F177: 0 | G177: 176 | H177: 175.648 | J177: 176 | K177: 0 | L177: 1 | M177: 0.002
F178: 0 | G178: 177 | H178: 176.646 | J178: 177 | K178: 0 | L178: 1 | M178: 0.002
F179: 0 | G179: 178 | H179: 177.644 | J179: 178 | K179: 0 | L179: 1 | M179: 0.002
F180: 0 | G180: 179 | H180: 178.642 | J180: 179 | K180: 0 | L180: 1 | M180: 0.002
F181: 0 | G181: 180 | H181: 179.64 | J181: 180 | K181: 0 | L181: 1 | M181: 0.002
F182: 0 | G182: 181 | H182: 180.638 | J182: 181 | K182: 0 | L182: 1 | M182: 0.002
F183: 0 | G183: 182 | H183: 181.636 | J183: 182 | K183: 0 | L183: 1 | M183: 0.002
F184: 0 | G184: 183 | H184: 182.634 | J184: 183 | K184: 0 | L184: 1 | M184: 0.002
F185: 0 | G185: 184 | H185: 183.632 | J185: 184 | K185: 0 | L185: 1 | M185: 0.002
F186: 0 | G186: 185 | H186: 184.63 | J186: 185 | K186: 0 | L186: 1 | M186: 0.002
F187: 0 | G187: 186 | H187: 185.628 | J187: 186 | K187: 0 | L187: 1 | M187: 0.002
F188: 0 | G188: 187 | H188: 186.626 | J188: 187 | K188: 0 | L188: 1 | M188: 0.002
F189: 0 | G189: 188 | H189: 187.624 | J189: 188 | K189: 0 | L189: 1 | M189: 0.002
F190: 0 | G190: 189 | H190: 188.622 | J190: 189 | K190: 0 | L190: 1 | M190: 0.002
F191: 0 | G191: 190 | H191: 189.62 | J191: 190 | K191: 0 | L191: 1 | M191: 0.002
F192: 0 | G192: 191 | H192: 190.618 | J192: 191 | K192: 0 | L192: 1 | M192: 0.002
F193: 0 | G193: 192 | H193: 191.616 | J193: 192 | K193: 0 | L193: 1 | M193: 0.002
F194: 0 | G194: 193 | H194: 192.614 | J194: =ROUND(H194:H1693,0) -> 193 | K194: 0 | L194: =J194/G194 -> 1 | M194: 0.002
F195: =IF(M195<0.0005,1,0) -> 0 | G195: 194 | H195: =D$2*G195 -> 193.612 | J195: 194 | K195: =G195-J195 -> 0 | L195: 1 | M195: =ABS($D$2-L195) -> 0.002
F196: 0 | G196: =1+G195 -> 195 | H196: 194.61 | J196: 195 | K196: 0 | L196: 1 | M196: 0.002
F197: 0 | G197: 196 | H197: 195.608 | J197: 196 | K197: 0 | L197: 1 | M197: 0.002
F198: 0 | G198: 197 | H198: 196.606 | J198: 197 | K198: 0 | L198: 1 | M198: 0.002
F199: 0 | G199: 198 | H199: 197.604 | J199: 198 | K199: 0 | L199: 1 | M199: 0.002
F200: 0 | G200: 199 | H200: 198.602 | J200: 199 | K200: 0 | L200: 1 | M200: 0.002
F201: 0 | G201: 200 | H201: 199.6 | J201: 200 | K201: 0 | L201: 1 | M201: 0.002
... 1300 more rows
